bitfinex/quotes_ETHUSD_20241104
["timestamp","ask_amount","ask_price","bid_price","bid_amount"]
[1730689004586,4.0243,2484.9,2484.8,0.06980826]
[1730689004790,4.02422,2485.0,2484.6,0.8113]
[1730689005027,4.02422,2485.0,2484.8,0.06977925]
[1730689005331,4.65444801,2485.1,2484.6,0.8113]
[1730689005492,4.65444801,2485.1,2484.9,0.06968012]
[1730689005686,0.63040801,2485.1,2484.9,0.06968012]
[1730689005889,0.63040801,2485.1,2484.7,4.02458]
[1730689006087,0.63040801,2485.1,2485.0,0.88088101]
[1730689006322,0.8065,2485.6,2485.0,0.8113]
[1730689006593,4.02389,2485.2,2485.0,0.8113]
[1730689006791,4.02384,2485.2,2485.1,0.0694819]
[1730689007231,4.02518,2484.4,2483.9,0.8113]
[1730689007496,4.02504,2484.5,2483.9,4.83713]
[1730689007705,4.02504,2484.5,2484.0,0.483713]
[1730689008236,4.02491,2484.6,2484.0,0.483713]
[1730689008389,8.04985,2484.6,2484.0,0.483713]
[1730689008585,4.02505,2484.5,2484.0,0.483713]
[1730689008830,4.02505,2484.5,2483.9,0.8113]
[1730689009030,4.02519,2484.4,2483.9,0.8113]
[1730689009533,4.02505,2484.5,2483.9,0.8113]
[1730689010133,4.02513,2484.4,2483.9,0.8113]
[1730689010372,4.02495,2484.5,2483.9,4.83722]
[1730689010532,4.02495,2484.5,2483.9,5.723555]
[1730689011588,8.05004,2484.5,2483.9,1.697635]
[1730689011746,4.02495,2484.5,2483.9,1.697635]
[1730689012395,4.02495,2484.5,2483.9,5.723535]
[1730689013262,4.02474,2484.7,2483.9,5.723535]
[1730689013462,4.0248,2484.6,2483.9,8.938045]
[1730689013664,4.0248,2484.6,2484.0,0.8113]
[1730689015070,4.0248,2484.6,2484.1,0.06337903]
[1730689015276,4.507864,2484.7,2484.1,0.06337903]
[1730689016375,4.507864,2484.7,2484.2,0.8113]
[1730689016678,4.02486,2484.6,2484.2,0.87457985]
[1730689016880,4.507864,2484.7,2484.2,0.87457985]
[1730689018139,8.532634,2484.7,2484.2,0.87457985]
[1730689018454,4.507864,2484.7,2484.2,0.87457985]
[1730689018647,4.507844,2484.7,2484.2,0.87457985]
[1730689018852,4.02479,2484.6,2484.2,0.87457985]
[1730689020482,4.507764,2484.7,2484.2,0.87457985]
[1730689020856,4.02479,2484.6,2484.2,0.87457985]
[1730689022139,4.02502,2484.5,2484.2,0.87457985]
[1730689022355,4.02527,2484.3,2484.2,0.06327985]
[1730689022559,0.8532934,2484.5,2484.2,0.06327985]
[1730689022784,4.507754,2484.7,2484.1,4.83688]
[1730689023080,4.507754,2484.7,2484.3,0.06322977]
[1730689023283,4.02463,2484.7,2484.2,0.06336242]
[1730689023482,4.02463,2484.7,2484.4,0.06316185]
[1730689023638,4.02463,2484.7,2484.3,0.06326102]
[1730689023839,4.02463,2484.7,2484.1,4.83688]
[1730689024096,4.02463,2484.7,2484.4,0.06316185]
[1730689024255,4.02463,2484.7,2484.1,4.83688]
[1730689024256,4.910185,2484.7,2484.1,4.83688]
[1730689024458,0.8065,2485.0,2484.5,0.06306269]
[1730689024661,4.83028,2485.3,2484.6,4.91654703]
[1730689024970,4.83028,2485.3,2484.6,4.8989756]
[1730689024971,4.02378,2485.3,2484.6,4.8989756]
[1730689025146,4.02378,2485.3,2484.7,0.8113]
[1730689025391,4.02378,2485.3,2484.8,0.06272733]
[1730689025590,8.04758,2485.3,2484.8,0.06272733]
[1730689025833,4.02378,2485.3,2484.8,0.06272733]
[1730689026714,4.02382,2485.2,2484.8,0.06272733]
[1730689026902,4.02401,2485.1,2484.8,0.06272733]
[1730689027692,4.02382,2485.2,2484.8,0.06272733]
[1730689028194,4.02398,2485.1,2484.8,0.06272733]
[1730689028491,4.78762,2485.2,2484.8,0.06272733]
[1730689028693,4.02398,2485.1,2484.8,0.06272733]
[1730689029716,4.02427,2485.0,2484.8,0.06272733]
[1730689030029,4.02399,2485.1,2484.5,4.82344]
[1730689030386,4.02399,2485.1,2484.9,0.06254341]
[1730689030561,4.02442,2484.9,2484.2,4.02529]
[1730689030723,4.02418,2485.0,2484.6,0.85912501]
[1730689030923,4.02418,2485.0,2484.6,0.7985]
[1730689031108,9.59352398,2485.2,2484.7,0.06052587]
[1730689031446,4.02367,2485.3,2484.7,4.02459]
[1730689031645,4.02367,2485.3,2484.8,0.85895563]
[1730689032635,4.02401,2485.1,2484.8,0.85895563]
[1730689033066,8.04812,2485.1,2484.8,0.85895563]
[1730689033271,4.02422,2485.0,2484.8,0.85895563]
[1730689033465,4.02377,2485.3,2484.8,0.85895563]
[1730689033639,8.04755,2485.3,2484.8,0.85895563]
[1730689033842,4.02377,2485.3,2484.8,0.85895563]
[1730689034581,4.02382,2485.2,2484.8,0.85895563]
[1730689035564,4.02398,2485.1,2484.8,0.85895563]
[1730689036581,4.828579,2485.2,2484.8,0.85895563]
[1730689036748,4.02382,2485.2,2484.8,0.85895563]
[1730689037266,4.55877976,2485.6,2484.8,0.85895563]
[1730689037488,4.02351,2485.4,2484.8,0.85895563]
[1730689037999,4.55877976,2485.6,2484.9,0.08048215]
[1730689038000,4.78705,2485.6,2484.9,0.08048215]
[1730689038155,4.02325,2485.6,2485.1,0.7985]
[1730689038480,4.8473633,2485.8,2485.2,0.06000805]
[1730689038859,8.8703333,2485.8,2485.2,0.06000805]
[1730689039059,4.02302,2485.7,2485.2,0.06000805]
[1730689040767,4.0233,2485.6,2485.2,0.06000805]
[1730689041085,8.04656,2485.6,2485.2,0.06000805]
[1730689041295,4.02328,2485.6,2485.2,0.06000805]
[1730689041810,4.02301,2485.7,2485.2,0.06000805]
[1730689042113,4.02317,2485.6,2485.2,0.06000805]
[1730689042314,4.02301,2485.7,2485.2,0.06000805]
[1730689042496,4.02301,2485.7,2484.2,0.7985]
[1730689042497,4.56877976,2485.5,2484.2,0.7985]
[1730689042671,0.7638,2484.8,2484.2,0.7985]
[1730689042869,8.05031,2484.4,2484.2,0.7985]
[1730689043070,4.02555,2484.2,2483.8,0.7985]
[1730689043534,4.02555,2484.2,2483.8,0.79719545]
[1730689043830,4.78902,2484.4,2483.8,0.79719545]
[1730689043969,8.81429,2484.4,2483.8,0.79719545]
[1730689044166,4.02531,2484.3,2483.8,0.79719545]
[1730689044401,4.78902,2484.4,2483.8,0.79719545]
[1730689044605,8.81423,2484.4,2483.8,0.79719545]
[1730689045216,4.02536,2484.3,2483.8,0.79719545]
[1730689045374,4.02544,2484.2,2483.8,0.79719545]
[1730689045809,0.881436,2484.3,2483.8,0.79719545]
[1730689046113,4.906726,2484.3,2483.8,0.79719545]
[1730689047017,8.932136,2484.3,2483.8,0.79719545]
[1730689047216,4.906726,2484.3,2483.8,0.79719545]
[1730689047783,4.5925126,2484.2,2483.8,0.79719545]
[1730689048012,8.6180926,2484.2,2483.8,0.79719545]
[1730689048211,8.6180626,2484.2,2483.8,0.79719545]
[1730689048429,4.5925126,2484.2,2483.8,0.79719545]
[1730689049041,4.0256,2484.1,2483.8,0.79719545]
[1730689049409,4.88741126,2484.1,2483.6,0.7785]
[1730689050005,4.02584,2484.0,2483.6,0.7785]
[1730689050210,4.02584,2484.0,2483.7,0.05346465]
[1730689050913,0.86181126,2484.1,2483.7,0.05346465]
[1730689051148,4.0256,2484.1,2483.7,0.05346465]
[1730689052452,0.7638,2484.4,2483.7,0.05346465]
[1730689052453,4.78902,2484.4,2483.7,0.05346465]
[1730689052747,3.01,2484.9,2483.8,4.80454]
[1730689052748,4.77901,2484.6,2483.8,4.80454]
[1730689052943,4.02491,2484.6,2484.1,0.7785]
[1730689053104,4.02469,2484.7,2484.1,0.7785]
[1730689053303,4.02469,2484.7,2484.2,0.05328103]
[1730689054034,9.581059,2484.8,2484.2,0.05328103]
[1730689054240,4.02464,2484.7,2484.2,0.05328103]
[1730689054609,4.802349,2484.8,2484.2,0.05328103]
[1730689054807,4.77836,2485.0,2484.3,0.7785]
[1730689055054,10.34499859,2485.4,2484.7,0.7785]
[1730689055055,4.02366,2485.3,2484.7,0.7785]
[1730689055206,2.52645883,2485.4,2484.7,4.02448]
[1730689055207,6.54996883,2485.4,2484.7,4.02448]
[1730689055401,2.52645883,2485.4,2484.8,0.7785]
[1730689055707,4.02336,2485.5,2484.8,4.85550759]
[1730689056013,0.0605933,2485.8,2485.2,0.55]
[1730689056217,0.0605933,2485.8,2485.4,0.55]
[1730689056601,0.0605933,2485.8,2485.5,0.05172213]
[1730689060652,0.0605933,2485.8,2485.7,0.8078]
[1730689061008,0.0605933,2485.8,2485.7,0.85923987]
[1730689061208,0.0605933,2485.8,2485.7,1.34747786]
[1730689061725,0.0605933,2485.8,2485.7,0.85923987]
[1730689064054,4.0834333,2485.8,2485.7,0.05143987]
[1730689064340,4.0834333,2485.8,2485.2,4.02372]
[1730689064341,0.0605933,2485.8,2485.2,4.02372]
[1730689064541,0.0605933,2485.8,2485.7,0.05096153]
[1730689064706,0.0605933,2485.8,2485.2,4.02372]
[1730689064904,0.0605933,2485.8,2485.7,0.05096153]
[1730689065107,0.0605933,2485.8,2485.3,0.483152]
[1730689065340,0.0605933,2485.8,2485.7,0.05096153]
[1730689065341,7.87841306,2485.8,2485.7,0.05096153]
[1730689065529,4.0834333,2485.8,2485.1,0.8078]
[1730689065729,4.0834333,2485.8,2485.2,4.02381]
[1730689065914,0.0605933,2485.8,2485.2,4.07364358]
[1730689066305,0.0605933,2485.8,2485.2,8.09735358]
[1730689066509,0.0605933,2485.8,2485.4,0.8078]
[1730689066958,0.0605933,2485.8,2485.5,0.04953633]
[1730689067656,0.69056705,2485.8,2485.5,0.04953633]
[1730689068724,0.19056705,2485.8,2485.5,0.04953633]
[1730689069128,4.0228,2485.9,2485.5,0.04953633]
[1730689069356,4.02262,2486.0,2485.5,0.04953633]
[1730689069567,8.04524,2486.0,2485.5,0.04953633]
[1730689069733,4.02269,2485.9,2485.5,0.04953633]
[1730689070046,4.02246,2486.1,2485.5,0.04953633]
[1730689070255,4.02274,2485.9,2485.5,0.04953633]
[1730689070552,4.02308,2485.7,2485.5,0.04953633]
[1730689071060,8.84874,2485.8,2485.1,4.83176]
[1730689071351,8.84875,2485.8,2485.6,0.04943726]
[1730689071554,4.02315,2485.7,2485.1,0.8078]
[1730689072114,4.82576,2485.8,2485.1,4.8317]
[1730689072318,4.02261,2486.0,2485.1,4.8317]
[1730689072319,4.02261,2486.0,2485.2,0.55]
[1730689072520,4.02261,2486.0,2485.4,0.8078]
[1730689073266,4.02261,2486.0,2485.4,4.83128]
[1730689073559,4.02261,2486.0,2485.4,0.8078]
[1730689073919,4.02276,2485.9,2485.4,0.8078]
[1730689074121,4.02276,2485.9,2485.4,1.345961]
[1730689074380,4.02261,2486.0,2485.4,1.345961]
[1730689075601,4.02269,2485.9,2485.4,1.345961]
[1730689076145,4.02261,2486.0,2485.4,1.345961]
[1730689076881,4.02261,2486.0,2485.5,0.04953633]
[1730689077248,0.8028,2486.1,2485.5,0.04953633]
[1730689077579,10.81693976,2486.4,2485.5,0.04953633]
[1730689077580,0.8028,2486.4,2485.9,4.02254]
[1730689077790,4.65154155,2486.6,2486.1,4.83016]
[1730689077791,0.62996155,2486.6,2486.1,4.83016]
[1730689077943,0.62996155,2486.6,2486.2,4.102558]
[1730689078145,0.62996155,2486.6,2486.1,0.8078]
[1730689078349,4.02146,2486.7,2486.3,0.04874839]
[1730689079153,4.02119,2486.9,2486.3,0.04874839]
[1730689079560,0.8028,2487.0,2486.3,0.04874839]
[1730689079772,4.0213,2486.8,2486.3,0.04874839]
[1730689080364,4.02166,2486.6,2486.3,0.04874839]
[1730689080693,4.02173,2486.5,2486.4,0.04864939]
[1730689081080,4.02218,2486.3,2485.8,0.8078]
[1730689081391,4.02221,2486.2,2485.8,0.8078]
[1730689081698,4.02204,2486.3,2485.9,0.04902757]
[1730689081904,4.02237,2486.1,2485.9,0.04902757]
[1730689082087,0.8028,2486.2,2485.6,4.83096]
[1730689082272,4.02204,2486.3,2486.0,0.04892853]
[1730689082478,4.02204,2486.3,2485.6,5.716394]
[1730689082677,4.02227,2486.2,2486.1,0.0488295]
[1730689082874,4.02204,2486.3,2485.6,5.716394]
[1730689083094,4.02204,2486.3,2486.1,0.0488295]
[1730689083400,4.02237,2486.1,2485.6,0.8078]
[1730689085972,8.04485,2486.1,2485.6,0.8078]
[1730689086173,4.02237,2486.1,2485.6,0.8078]
[1730689086871,4.02239,2486.1,2485.6,0.8078]
[1730689087703,4.02262,2486.0,2485.6,0.8078]
[1730689088067,4.0227,2485.9,2485.6,0.8078]
[1730689088412,4.0227,2485.9,2485.2,0.81]
[1730689089408,4.02269,2485.9,2485.3,4.02364]
[1730689090386,4.82533,2486.0,2485.3,8.04721]
[1730689091010,4.02228,2486.2,2485.6,0.81]
[1730689091224,4.02227,2486.2,2485.6,0.81]
[1730689091713,4.02218,2486.3,2485.6,0.81]
[1730689091916,4.02247,2486.1,2485.7,0.04924551]
[1730689092083,4.02255,2486.0,2485.7,0.04924551]
[1730689092288,4.02236,2486.1,2485.7,0.04924551]
[1730689092476,4.02215,2486.3,2485.7,0.04924551]
[1730689092875,4.02236,2486.1,2485.7,0.04924551]
[1730689093382,4.02263,2486.0,2485.7,0.04924551]
[1730689095213,4.0222,2486.2,2485.7,0.04924551]
[1730689095880,4.02238,2486.1,2485.7,0.04924551]
[1730689097915,4.02222,2486.2,2485.7,0.04924551]
[1730689098779,4.02216,2486.3,2485.7,0.53750006]
[1730689099003,4.02216,2486.3,2485.7,4.56043006]
[1730689099282,0.8105,2486.4,2485.7,8.58336006]
[1730689099481,0.8105,2486.4,2485.7,4.56043006]
[1730689099482,4.83239,2486.4,2485.7,4.56043006]
[1730689099711,4.83239,2486.4,2485.8,0.81]
[1730689099712,4.02204,2486.3,2485.8,0.81]
[1730689099918,4.02204,2486.3,2485.8,1.39615241]
[1730689100415,4.02221,2486.2,2485.8,1.39615241]
[1730689100589,4.02204,2486.3,2485.8,1.39615241]
[1730689101785,4.02229,2486.2,2485.8,0.8591094]
[1730689102784,4.02204,2486.3,2485.8,0.8591094]
[1730689103286,8.04419,2486.3,2485.8,0.8591094]
[1730689103484,4.02221,2486.2,2485.8,0.8591094]
[1730689104092,4.02246,2486.1,2485.8,0.8591094]
[1730689104381,4.02221,2486.2,2485.8,0.8591094]
[1730689105295,4.02245,2486.1,2485.8,0.0491094]
[1730689105590,4.02245,2486.1,2485.6,0.7938]
[1730689106114,4.02245,2486.1,2485.7,0.04918858]
[1730689107030,4.02255,2486.0,2485.7,0.04918858]
[1730689107195,4.02237,2486.1,2485.7,0.04918858]
[1730689107585,4.02253,2486.0,2485.7,0.04918858]
[1730689107997,4.02237,2486.1,2485.7,0.04918858]
[1730689108306,8.04485,2486.1,2485.7,0.04918858]
[1730689109428,4.02237,2486.1,2485.7,0.04918858]
[1730689112439,4.02217,2486.3,2485.7,0.04918858]
[1730689112639,4.02229,2486.2,2485.7,0.53581244]
[1730689112834,4.02229,2486.2,2485.7,0.04918858]
[1730689113622,4.02237,2486.1,2485.7,0.04918858]
[1730689114623,4.0222,2486.3,2485.7,0.04918858]
[1730689114856,4.02243,2486.1,2485.7,0.04918858]
[1730689115692,8.04489,2486.1,2485.7,0.04918858]
[1730689116064,4.02243,2486.1,2485.7,0.04918858]
[1730689116356,4.02258,2486.0,2485.7,0.04918858]
[1730689118028,4.0223,2486.2,2485.7,0.04918858]
[1730689118647,4.02248,2486.1,2485.7,0.04918858]
[1730689118838,8.85451,2486.4,2485.6,4.81695]
[1730689119039,8.85451,2486.4,2485.8,0.7909]
[1730689119040,4.02208,2486.3,2485.8,0.7909]
[1730689119250,4.02208,2486.3,2485.9,0.04903463]
[1730689119449,4.0222,2486.2,2485.9,0.04903463]
[1730689119653,4.02244,2486.1,2485.9,0.04903463]
[1730689120764,4.83251,2486.4,2485.9,0.04903463]
[1730689120968,4.02204,2486.3,2485.9,0.04903463]
[1730689121464,4.83251,2486.4,2485.9,0.04903463]
[1730689121668,4.83251,2486.4,2485.9,0.53531109]
[1730689121835,8.85449,2486.4,2485.9,0.53531109]
[1730689122169,4.02198,2486.4,2485.9,0.53531109]
[1730689122345,4.02172,2486.5,2485.9,0.53531109]
[1730689122545,4.02172,2486.5,2485.9,0.04903463]
[1730689122746,4.02172,2486.5,2485.9,4.07168463]
[1730689123091,4.02216,2486.3,2485.9,0.04903463]
[1730689123367,4.02239,2486.1,2485.9,0.04903463]
[1730689124469,8.04487,2486.1,2485.9,0.04903463]
[1730689124768,4.02252,2486.0,2485.9,0.04903463]
[1730689125148,4.02238,2486.1,2485.9,0.04903463]
[1730689125751,4.0223,2486.2,2485.9,0.04903463]
[1730689126067,8.04456,2486.2,2485.9,0.04903463]
[1730689126237,4.0224,2486.1,2485.9,0.04903463]
[1730689128269,0.886946,2486.2,2485.9,0.04903463]
[1730689128476,4.02303,2485.7,2485.5,0.7909]
[1730689129350,0.8249,2486.0,2485.5,0.7909]
[1730689129554,4.02261,2486.0,2485.5,0.7909]
[1730689131469,4.02293,2485.8,2485.5,0.7909]
[1730689132077,4.7607875,2486.0,2485.5,0.7909]
[1730689132275,4.02254,2486.0,2485.5,0.7909]
[1730689135300,4.02237,2486.1,2485.5,0.7909]
[1730689135485,4.02258,2486.0,2485.5,0.7909]
[1730689135869,4.0227,2485.9,2485.5,0.7909]
[1730689136055,4.0227,2485.9,2485.5,1.272353]
[1730689136394,4.02237,2486.1,2485.5,1.272353]
[1730689136690,4.02261,2486.0,2485.5,1.272353]
[1730689136902,4.02261,2486.0,2485.6,0.04938915]
[1730689137655,4.02237,2486.1,2485.6,0.04938915]
[1730689137959,8.04484,2486.1,2485.6,0.58390336]
[1730689138568,4.0226,2486.0,2485.6,0.58390336]
[1730689139178,4.02237,2486.1,2485.6,0.58390336]
[1730689140294,4.0226,2486.0,2485.6,0.04938915]
[1730689140604,4.02237,2486.1,2485.6,0.04938915]
[1730689141111,4.02263,2486.0,2485.6,0.04938915]
[1730689141863,4.02237,2486.1,2485.7,0.7909]
[1730689142108,4.02237,2486.1,2485.8,0.04919103]
[1730689142304,4.02237,2486.1,2485.7,0.7909]
[1730689142495,4.02253,2486.0,2485.9,0.04909199]
[1730689142811,4.02253,2486.0,2485.7,0.7909]
[1730689143008,4.02253,2486.0,2485.9,0.04909642]
[1730689143224,5.53470995,2486.3,2485.8,0.04919547]
[1730689143409,4.02261,2486.0,2485.9,0.04909642]
[1730689143586,4.02237,2486.1,2485.7,0.7909]
[1730689143787,6.55679995,2486.3,2485.9,0.04909642]
[1730689144097,6.55666995,2486.4,2486.0,0.83989738]
[1730689144614,6.55666995,2486.4,2486.0,0.7909]
[1730689145082,4.02211,2486.3,2486.1,0.04889835]
[1730689145967,4.0222,2486.2,2486.1,0.04889835]
[1730689146387,4.8471,2486.2,2486.1,0.04889835]
[1730689146682,4.02237,2486.1,2485.8,0.7909]
[1730689146909,4.8471,2486.2,2486.1,0.04889835]
[1730689147111,9.4806577,2486.2,2485.6,0.7909]
[1730689147276,0.8249,2485.9,2485.2,1.08771766]
[1730689147477,4.02301,2485.7,2485.2,0.7909]
[1730689147812,0.8249,2485.9,2485.2,0.7909]
[1730689147813,4.02319,2485.6,2485.2,0.7909]
[1730689148984,0.7624,2485.5,2485.0,0.7878]
[1730689149186,4.78583,2485.5,2485.0,0.7878]
[1730689149401,4.02343,2485.5,2485.0,1.43237477]
[1730689150935,4.02342,2485.5,2485.0,1.43237477]
[1730689151138,8.04686,2485.5,2485.0,1.43237477]
[1730689151809,8.04686,2485.5,2485.1,0.04990225]
[1730689152343,4.02342,2485.5,2485.1,0.04990225]
[1730689152838,8.04684,2485.5,2485.1,0.04990225]
[1730689153003,4.02356,2485.4,2485.1,0.04990225]
[1730689153841,4.02334,2485.5,2485.1,0.04990225]
[1730689156235,4.02319,2485.6,2485.1,0.60055895]
[1730689158330,4.02295,2485.8,2485.2,0.7878]
[1730689158642,4.02295,2485.8,2485.2,0.83769581]
[1730689159643,4.02309,2485.7,2485.2,0.83769581]
[1730689160176,4.0232,2485.6,2485.2,0.83769581]
[1730689160455,4.02309,2485.7,2485.2,1.44339454]
[1730689160938,8.04622,2485.7,2485.2,1.44339454]
[1730689161124,4.02309,2485.7,2485.2,1.44339454]
[1730689161845,4.02318,2485.6,2485.2,1.44339454]
[1730689162261,4.02309,2485.7,2485.2,1.44339454]
[1730689163530,4.02309,2485.7,2485.3,0.54672945]
[1730689163734,4.02309,2485.7,2485.3,0.59657914]
[1730689164171,4.02309,2485.7,2485.3,0.04984969]
[1730689164524,4.0232,2485.6,2485.3,0.04984969]
[1730689166252,4.02348,2485.5,2485.3,0.04984969]
[1730689169367,4.02317,2485.6,2485.3,0.04984969]
[1730689169745,4.02343,2485.5,2485.3,0.04984969]
[1730689169950,4.02349,2485.4,2485.3,0.04984969]
[1730689170144,4.02349,2485.4,2485.0,0.81]
[1730689170655,4.02343,2485.5,2485.0,0.81]
[1730689170855,4.02343,2485.5,2485.1,0.05004348]
[1730689171058,4.02351,2485.4,2485.1,0.05004348]
[1730689172572,8.04715,2485.4,2485.1,0.05004348]
[1730689172737,4.02369,2485.3,2485.1,0.05004348]
[1730689174231,1.618515,2485.4,2485.1,0.05004348]
[1730689174460,4.02369,2485.3,2485.1,0.05004348]
[1730689174976,4.02382,2485.2,2485.1,0.05004348]
[1730689175137,4.02382,2485.2,2484.8,0.81]
[1730689175472,4.02407,2485.1,2484.6,0.81]
[1730689176147,4.02407,2485.1,2484.7,0.04877982]
[1730689176959,4.02414,2485.0,2484.7,0.04877982]
[1730689177546,4.02446,2484.8,2484.7,0.04877982]
[1730689177749,4.83826,2484.8,2484.7,0.04877982]
[1730689177959,4.02466,2484.7,2484.3,0.81]
[1730689178280,4.02466,2484.7,2484.4,0.04918323]
[1730689182889,4.83838,2484.8,2484.4,0.04918323]
[1730689183693,4.02463,2484.7,2484.4,0.04918323]
[1730689185071,4.83826,2484.8,2484.4,0.04918323]
[1730689185387,3.97053393,2485.4,2484.4,0.04918323]
[1730689185388,1.38112573,2485.4,2484.7,5.65864538]
[1730689185591,4.02367,2485.3,2484.9,0.7851]
[1730689185806,4.02384,2485.2,2485.0,0.04858841]
[1730689186088,4.02367,2485.3,2485.0,0.04858841]
[1730689186682,8.04744,2485.3,2485.0,0.04858841]
[1730689186990,4.02367,2485.3,2485.0,0.04858841]
[1730689190929,4.02342,2485.5,2485.0,0.04858841]
[1730689191685,4.02353,2485.4,2485.0,0.04858841]
[1730689191927,4.02368,2485.3,2485.0,0.04858841]
[1730689192228,4.02341,2485.5,2485.0,0.04858841]
[1730689194096,2.00832969,2485.7,2485.0,0.04858841]
[1730689194097,4.0235,2485.4,2485.0,0.04858841]
[1730689194933,4.02371,2485.3,2485.0,0.04858841]
[1730689195442,4.02384,2485.2,2485.0,0.04858841]
[1730689195800,0.7509,2485.3,2485.0,0.04858841]
[1730689196201,4.77465,2485.3,2485.0,0.04858841]
[1730689197039,8.04711,2485.4,2485.0,0.04858841]
[1730689197929,4.903301,2485.4,2485.0,0.04858841]
[1730689198233,4.02369,2485.3,2485.0,0.04858841]
[1730689199511,4.02391,2485.2,2485.0,0.04858841]
[1730689200803,4.02366,2485.3,2485.0,0.04858841]
[1730689201001,5.41784285,2485.7,2485.1,2.41914538]
[1730689201002,5.28055969,2485.7,2485.1,2.41914538]
[1730689201350,3.0,2485.7,2485.2,0.7851]
[1730689201504,4.65281375,2485.9,2485.3,6.44279538]
[1730689201704,5.22396677,2486.1,2485.5,4.02331]
[1730689201901,4.02243,2486.1,2485.6,0.7851]
[1730689202098,4.77318,2486.2,2485.6,6.44230538]
[1730689202404,4.01774517,2486.1,2485.6,3.47375313]
[1730689203337,4.02244,2486.1,2485.6,1.83970775]
[1730689203524,4.02244,2486.1,2485.6,0.7851]
[1730689203732,8.04492,2486.1,2485.6,0.7851]
[1730689204438,4.02244,2486.1,2485.6,0.7851]
[1730689205149,4.02273,2485.9,2485.6,0.7851]
[1730689205302,4.02256,2486.0,2485.6,0.7851]
[1730689205504,8.04521,2486.0,2485.6,0.7851]
[1730689205703,4.02256,2486.0,2485.6,0.7851]
[1730689205905,4.02256,2486.0,2485.6,1.42936254]
[1730689206109,0.7509,2486.4,2485.6,1.42936254]
[1730689206333,4.02222,2486.2,2485.7,0.7851]
[1730689206557,3.0,2486.5,2485.9,0.7851]
[1730689206707,4.02172,2486.5,2485.9,4.80777]
[1730689206910,4.02172,2486.5,2485.9,1.83157354]
[1730689207111,4.0219,2486.4,2485.9,1.83157354]
[1730689207353,0.7509,2486.6,2485.9,0.7851]
[1730689207354,4.02216,2486.3,2485.9,0.7851]
[1730689207512,4.02238,2486.1,2485.9,0.7851]
[1730689207719,0.7509,2486.2,2485.6,0.7851]
[1730689207951,4.77311,2486.2,2485.6,0.7851]
[1730689208139,4.02212,2486.3,2485.7,0.81]
[1730689208449,4.02222,2486.2,2485.8,0.81]
[1730689209211,4.02222,2486.2,2485.8,2.44404538]
[1730689209635,4.02222,2486.2,2485.8,0.81]
[1730689209840,8.04455,2486.2,2485.8,0.81]
[1730689210041,8.04456,2486.2,2485.8,0.81]
[1730689210251,4.0218,2486.5,2486.0,1.63404538]
[1730689210426,4.0218,2486.5,2486.1,0.81]
[1730689210649,0.8046,2486.6,2486.1,0.81]
[1730689210970,4.02227,2486.2,2485.9,0.81]
[1730689211259,8.04458,2486.2,2485.9,0.81]
[1730689211559,4.02227,2486.2,2485.9,0.81]
[1730689211764,4.02205,2486.3,2485.9,0.81]
[1730689211920,4.02212,2486.3,2485.9,0.81]
[1730689212126,4.02195,2486.4,2485.9,1.05440454]
[1730689212369,8.04394,2486.4,2485.9,1.05440454]
[1730689212521,4.02195,2486.4,2485.9,1.05440454]
[1730689213235,4.02166,2486.6,2486.0,2.44404538]
[1730689213438,4.0214,2486.7,2486.2,2.44404538]
[1730689213627,4.02132,2486.8,2486.2,6.46622538]
[1730689213963,4.02132,2486.8,2486.3,0.81]
[1730689214182,0.0605933,2487.1,2486.5,0.81]
[1730689214352,0.0605933,2487.1,2486.8,0.81]
[1730689214660,0.0605933,2487.1,2486.9,1.63404538]
[1730689215373,0.0605933,2487.1,2487.0,0.81]
[1730689217386,0.0605933,2487.1,2487.0,0.85597009]
[1730689217676,0.0605933,2487.1,2487.0,1.3436871]
[1730689217880,0.0605933,2487.1,2487.0,0.85597009]
[1730689220057,0.0605933,2487.1,2487.0,0.04597009]
[1730689220258,4.0813333,2487.1,2487.0,0.04597009]
[1730689220562,4.02101,2487.0,2486.5,0.81]
[1730689221353,4.0813333,2487.1,2486.5,0.81]
[1730689221677,8.1021633,2487.1,2486.6,0.86191912]
[1730689221865,4.0813333,2487.1,2486.6,0.86191912]
[1730689223559,4.02094,2487.0,2486.6,0.86191912]
[1730689223760,4.02094,2487.0,2486.7,0.0444114]
[1730689226982,8.04194,2487.0,2486.7,0.0444114]
[1730689227282,4.02094,2487.0,2486.7,0.0444114]
[1730689227821,4.02107,2486.9,2486.7,0.0444114]
[1730689227973,4.0814033,2487.1,2486.7,0.0444114]
[1730689228178,4.02109,2486.9,2486.5,0.81]
[1730689228467,4.02093,2487.0,2486.8,0.04431904]
[1730689228616,4.02093,2487.0,2486.5,0.81]
[1730689228617,4.0814033,2487.1,2486.5,0.81]
[1730689228919,4.0814033,2487.1,2486.3,4.02195]
[1730689228920,0.0605933,2487.1,2486.9,0.82562008]
[1730689229123,0.0605933,2487.1,2486.9,0.7814]
[1730689229321,0.0605933,2487.1,2487.0,0.04412112]
[1730689230404,0.0605933,2487.1,2487.0,0.82552112]
[1730689230578,0.0605933,2487.1,2487.0,1.71228423]
[1730689234801,0.0605933,2487.1,2487.0,0.04412112]
[1730689235114,0.0605933,2487.1,2486.8,0.7814]
[1730689235426,0.0605933,2487.1,2486.9,0.04402394]
[1730689235601,0.0605933,2487.1,2486.9,4.06500394]
[1730689236150,0.0605933,2487.1,2487.0,5.1991523]
[1730689236348,0.0605933,2487.1,2487.0,10.14646792]
[1730689236638,0.00251547,2488.0,2487.3,0.7814]
[1730689236998,4.01966,2487.8,2487.4,0.04352923]
[1730689237211,4.01949,2487.9,2487.4,0.04352923]
[1730689237651,4.01987,2487.7,2487.4,0.04352923]
[1730689237833,1.618052,2487.7,2487.4,0.04352923]
[1730689238037,4.0201,2487.5,2487.4,0.04352923]
[1730689238338,4.02009,2487.6,2486.8,0.7814]
[1730689238339,4.02067,2487.2,2486.8,0.7814]
[1730689238509,4.02067,2487.2,2486.9,0.04393375]
[1730689239149,4.02042,2487.3,2486.9,0.04393375]
[1730689239559,8.04077,2487.4,2486.9,0.04393375]